fUSD/lending_fUSD_20240701
["ID","MTS","AMOUNT","RATE_DAILY","PERIOD"]
[330855691,1719868245161,-500.0,0.00021918,13]
[330855692,1719868245170,-500.0,0.00021918,13]
[330855693,1719868245179,-500.0,0.00021918,13]
[330855694,1719868245189,-500.0,0.00021918,13]
[330855695,1719868245198,-500.0,0.00021918,13]
[330855696,1719868245207,-500.0,0.00021918,13]
[330855697,1719868245217,-500.0,0.00021918,13]
[330855698,1719868245227,-500.0,0.00021918,13]
[330855699,1719868245236,-500.0,0.00021918,13]
[330855700,1719868245245,-500.0,0.00021918,13]
[330855701,1719868245255,-500.0,0.00021918,13]
[330855702,1719868245264,-500.0,0.00021918,13]
[330855703,1719868245274,-500.0,0.00021918,13]
[330855704,1719868245283,-500.0,0.00021918,13]
[330855705,1719868245292,-500.0,0.00021918,13]
[330855706,1719868245302,-500.0,0.00021918,13]
[330855707,1719868245311,-500.0,0.00021918,13]
[330855708,1719868245320,-500.0,0.00021918,13]
[330855709,1719868245329,-500.0,0.00021918,13]
[330855710,1719868245338,-500.0,0.00021918,13]
[330855711,1719868245347,-509.0,0.00021918,13]
[330855712,1719868245356,-182.07,0.00021918,2]
[330855713,1719868245367,-150.21,0.00021918,2]
[330855714,1719868245376,-500.0,0.00021918,2]
[330855715,1719868245386,-500.0,0.00021918,2]
[330855716,1719868245395,-2346.69,0.00021924,4]
[330855717,1719868245405,-500.0,0.00021926,2]
[330855718,1719868245414,-500.0,0.0002193,2]
[330855719,1719868245424,-500.0,0.00021935,2]
[330855720,1719868245434,-500.0,0.00021938,2]
[330855721,1719868245443,-500.0,0.00021944,2]
[330855722,1719868245452,-150.0,0.00021945,2]
[330855723,1719868245461,-150.0,0.00021945,2]
[330855724,1719868245471,-150.0,0.00021945,2]
[330855725,1719868245480,-150.0,0.00021945,2]
[330855726,1719868245489,-150.0,0.00021945,2]
[330855727,1719868245498,-500.0,0.00021947,2]
[330855728,1719868245508,-500.0,0.00021952,2]
[330855729,1719868245517,-500.0,0.00021956,2]
[330855730,1719868245526,-1459.58725741,0.0002196,2]
[330855731,1719868245535,-500.0,0.00021961,2]
[330855732,1719868245545,-500.0,0.00021965,2]
[330855733,1719868245555,-334.0,0.00021967,30]
[330855734,1719868245564,-988.0,0.00021968,30]
[330855735,1719868245574,-4112.86513389,0.00021969,2]
[330855736,1719868245583,-500.0,0.0002197,2]
[330855737,1719868245593,-151.61099688,0.00021973,4]
[330855738,1719868245603,-500.88890934,0.00021973,5]
[330855739,1719868245613,-2173.45,0.00021973,4]
[330855740,1719868245622,-1262.58,0.00021973,4]
[330855741,1719868245631,-1096.98,0.00021973,4]
[330855742,1719868245643,-500.0,0.00021974,2]
[330855743,1719868245653,-334.0,0.00021977,30]
[330855744,1719868245664,-988.0,0.00021978,30]
[330855745,1719868245673,-500.0,0.00021982,2]
[330855747,1719868245682,-2776.6,0.00021983,4]
[330855748,1719868245691,-1025.51,0.00021983,4]
[330855750,1719868245701,-3491.75,0.00021983,4]
[330855752,1719868245710,-1545.64,0.00021983,4]
[330855754,1719868245720,-905.27,0.00021983,4]
[330855756,1719868245729,-832.44,0.00021983,4]
[330855758,1719868245739,-2173.53,0.00021983,4]
[330855760,1719868245748,-500.0,0.00021983,4]
[330855763,1719868245758,-2107.02,0.00021983,4]
[330855765,1719868245768,-983.5,0.00021983,4]
[330855767,1719868245777,-1281.67,0.00021983,4]
[330855769,1719868245787,-500.0,0.00021983,4]
[330855771,1719868245796,-556.0,0.00021984,2]
[330855773,1719868245805,-2425.4333944,0.00021984,2]
[330855775,1719868245815,-529.9221119,0.00021984,2]
[330855776,1719868245824,-2346.69,0.00021984,4]
[330855778,1719868245834,-2634.09,0.00021984,4]
[330855779,1719868245844,-3871.7,0.00021984,4]
[330855780,1719868245854,-500.0,0.00021984,4]
[330855781,1719868245864,-503.52,0.00021984,4]
[330855782,1719868245874,-14892.2151405,0.00021984,2]
[330855783,1719868245884,-12453.84466,0.00021984,2]
[330855784,1719868245893,-1878.5439735,0.00021985,2]
[330855785,1719868245903,-1331.6545526,0.00021985,2]
[330855786,1719868245912,-784.7651317,0.00021985,2]
[330855787,1719868245922,-237.8757107,0.00021985,2]
[330855788,1719868245932,-529.9221119,0.00021985,2]
[330855789,1719868245942,-529.9221119,0.00021985,2]
[330855790,1719868245953,-529.9221119,0.00021985,2]
[330855791,1719868245963,-529.9221119,0.00021985,2]
[330855792,1719868245973,-10015.4741795,0.00021985,2]
[330855793,1719868245983,-7577.1036991,0.00021985,2]
[330855794,1719868245994,-5138.7332186,0.00021985,2]
[330855795,1719868246004,-334.0,0.00021987,30]
[330855796,1719868246013,-988.0,0.00021988,30]
[330855797,1719868246028,-500.0,0.00021991,2]
[330855798,1719868246037,-646.0,0.00021996,4]
[330855799,1719868246049,-500.0,0.00021996,4]
[330855800,1719868246061,-500.0,0.00021996,4]
[330855801,1719868246072,-500.0,0.00021996,4]
[330855802,1719868246083,-500.0,0.00021996,4]
[330855803,1719868246092,-608.45,0.00021996,4]
[330855804,1719868246105,-500.0,0.00021996,4]
[330855805,1719868246118,-500.0,0.00021996,4]
[330855806,1719868246127,-535.46,0.00021996,4]
[330855807,1719868246139,-639.87,0.00021996,4]
[330855808,1719868246149,-500.0,0.00021996,4]
[330855809,1719868246160,-5653.8,0.00021996,4]
[330855810,1719868246171,-667.49,0.00021996,4]
[330855811,1719868246182,-500.0,0.00021996,4]
[330855812,1719868246192,-500.0,0.00021996,4]
[330855813,1719868246202,-300.0,0.00021997,2]
[330855814,1719868246212,-300.0,0.00021997,2]
[330855815,1719868246221,-300.0,0.00021997,2]
[330855816,1719868246231,-300.0,0.00021997,2]
[330855817,1719868246240,-150.0,0.00021997,10]
[330855818,1719868246249,-2776.6,0.00021997,4]
[330855819,1719868246258,-2173.45,0.00021997,4]
[330855820,1719868246269,-1540.04,0.00021997,4]
[330855821,1719868246280,-832.44,0.00021997,4]
[330855822,1719868246290,-2063.07,0.00021997,4]
[330855823,1719868246300,-2494.45,0.00021997,4]
[330855824,1719868246309,-500.0,0.00021997,4]
[330855825,1719868246319,-500.0,0.00021997,4]
[330855826,1719868246328,-300.0,0.00021997,2]
[330855827,1719868246339,-150.0,0.00021997,10]
[330855828,1719868246348,-2107.02,0.00021997,4]
[330855829,1719868246356,-1410.65,0.00021997,4]
[330855830,1719868246367,-983.5,0.00021997,4]
[330855831,1719868246376,-1510.28,0.00021997,4]
[330855832,1719868246386,-1262.58,0.00021997,4]
[330855833,1719868246396,-1221.3,0.00021997,4]
[330855834,1719868246405,-500.0,0.00021997,4]
[330855835,1719868246415,-3385.58,0.00021997,4]
[330855836,1719868246425,-150.0,0.00021997,10]
[330855837,1719868246435,-6908.37,0.00021997,4]
[330855838,1719868246444,-1623.46,0.00021997,4]
[330855839,1719868246454,-1096.98,0.00021997,4]
[330855840,1719868246463,-646.0,0.00021998,4]
[330855841,1719868246473,-646.0,0.00021998,4]
[330855842,1719868246483,-2776.6,0.00021998,4]
[330855843,1719868246492,-2776.6,0.00021998,4]
[330855844,1719868246503,-2173.45,0.00021998,4]
[330855845,1719868246513,-2173.45,0.00021998,4]
[330855846,1719868246522,-1025.51,0.00021998,4]
[330855847,1719868246532,-1025.51,0.00021998,4]
[330855848,1719868246542,-1025.51,0.00021998,4]
[330855849,1719868246551,-2346.69,0.00021998,4]
[330855850,1719868246561,-3491.75,0.00021998,4]
[330855851,1719868246571,-3491.75,0.00021998,4]
[330855852,1719868246580,-3491.75,0.00021998,4]
[330855853,1719868246590,-500.0,0.00021998,4]
[330855854,1719868246599,-500.0,0.00021998,4]
[330855855,1719868246609,-500.0,0.00021998,4]
[330855856,1719868246618,-500.0,0.00021998,4]
[330855857,1719868246628,-2634.09,0.00021998,4]
[330855858,1719868246638,-2634.09,0.00021998,4]
[330855859,1719868246647,-500.0,0.00021998,4]
[330855860,1719868246656,-316.08,0.00021998,4]
[330855861,1719868246666,-375.4,0.00021998,4]
[330855862,1719868246675,-1545.64,0.00021998,4]
[330855863,1719868246684,-1545.64,0.00021998,4]
[330855864,1719868246694,-1545.64,0.00021998,4]
[330855865,1719868246703,-608.45,0.00021998,4]
[330855866,1719868246712,-608.45,0.00021998,4]
[330855867,1719868246722,-500.0,0.00021998,4]
[330855868,1719868246731,-500.0,0.00021998,4]
[330855869,1719868246786,-500.0,0.00021998,4]
[330855870,1719868246796,-500.0,0.00021998,4]
[330855871,1719868246806,-1540.04,0.00021998,4]
[330855872,1719868246816,-1540.04,0.00021998,4]
[330855873,1719868246825,-905.27,0.00021998,4]
[330855874,1719868246834,-905.27,0.00021998,4]
[330855875,1719868246843,-905.27,0.00021998,4]
[330855876,1719868246852,-535.46,0.00021998,4]
[330855877,1719868246861,-535.46,0.00021998,4]
[330855878,1719868246870,-3871.7,0.00021998,4]
[330855879,1719868246880,-3871.7,0.00021998,4]
[330855880,1719868246889,-832.44,0.00021998,4]
[330855881,1719868246898,-2173.53,0.00021998,4]
[330855882,1719868246911,-2173.53,0.00021998,4]
[330855883,1719868246922,-639.87,0.00021998,4]
[330855884,1719868246932,-2173.53,0.00021998,4]
[330855885,1719868246941,-639.87,0.00021998,4]
[330855886,1719868246951,-2063.07,0.00021998,4]
[330855887,1719868246963,-2063.07,0.00021998,4]
[330855888,1719868246972,-500.0,0.00021998,4]
[330855889,1719868246981,-500.0,0.00021998,4]
[330855890,1719868246991,-2494.45,0.00021998,4]
[330855891,1719868247000,-2494.45,0.00021998,4]
[330855892,1719868247010,-500.0,0.00021998,4]
[330855893,1719868247020,-500.0,0.00021998,4]
[330855894,1719868247033,-5653.8,0.00021998,4]
[330855895,1719868247043,-5653.8,0.00021998,4]
[330855896,1719868247055,-667.49,0.00021998,4]
[330855897,1719868247067,-667.49,0.00021998,4]
[330855898,1719868247077,-500.0,0.00021998,4]
[330855899,1719868247087,-2107.02,0.00021998,4]
[330855900,1719868247096,-1410.65,0.00021998,4]
[330855901,1719868247108,-2107.02,0.00021998,4]
[330855902,1719868247118,-1410.65,0.00021998,4]
[330855903,1719868247127,-983.5,0.00021998,4]
[330855904,1719868247136,-500.0,0.00021998,4]
[330855905,1719868247145,-500.0,0.00021998,4]
[330855906,1719868247154,-1510.28,0.00021998,4]
[330855907,1719868247163,-1510.28,0.00021998,4]
[330855908,1719868247172,-500.0,0.00021998,4]
[330855909,1719868247180,-318.36189694,0.00021998,4]
[330855910,1719868247189,-500.0,0.00021998,4]
[330855911,1719868247198,-500.0,0.00021998,4]
[330855912,1719868247207,-1281.67,0.00021998,4]
[330855913,1719868247215,-1281.67,0.00021998,4]
[330855914,1719868247224,-1281.67,0.00021998,4]
[330855915,1719868247233,-1262.58,0.00021998,4]
[330855916,1719868247243,-1262.58,0.00021998,4]
[330855917,1719868247252,-1221.3,0.00021998,4]
[330855918,1719868247261,-1221.3,0.00021998,4]
[330855919,1719868247270,-500.0,0.00021998,4]
[330855920,1719868247279,-503.52,0.00021998,4]
[330855921,1719868247288,-503.52,0.00021998,4]
[330855922,1719868247297,-3385.58,0.00021998,4]
[330855923,1719868247306,-3385.58,0.00021998,4]
[330855924,1719868247316,-6908.37,0.00021998,4]
[330855925,1719868247324,-6908.37,0.00021998,4]
[330855926,1719868247334,-1623.46,0.00021998,4]
[330855927,1719868247342,-1623.46,0.00021998,4]
[330855928,1719868247351,-1096.98,0.00021998,4]
[330855929,1719868247360,-1096.98,0.00021998,4]
[330855930,1719868247370,-300.0,0.00021998,2]
[330855931,1719868247379,-150.0,0.00021998,10]
[330855932,1719868247388,-177.88102685,0.00021998,10]
[330855933,1719868247397,-300.0,0.00021998,2]
[330855934,1719868247407,-300.0,0.00021998,2]
[330855935,1719868247416,-300.0,0.00021998,2]
[330855936,1719868247425,-300.0,0.00021998,2]
[330855937,1719868247435,-150.0,0.00021998,10]
[330855938,1719868247444,-150.0,0.00021998,10]
[330855939,1719868247453,-150.0,0.00021998,10]
[330855940,1719868247462,-150.0,0.00021998,10]
[330855941,1719868247472,-150.0,0.00021998,10]
[330855942,1719868247480,-150.0,0.00021998,10]
[330855943,1719868247490,-300.0,0.00021999,2]
[330855944,1719868247499,-150.0,0.00021999,10]
[330855945,1719868247508,-300.0,0.00021999,2]
[330855946,1719868247517,-150.0,0.00021999,10]
[330855947,1719868247526,-97598.1118043,0.00021999,2]
[330855948,1719868247536,-151.595079,0.00021999,7]
[330855949,1719868247545,-151.0,0.00021999,7]
[330855950,1719868247554,-151.0,0.00021999,7]
[330855951,1719868247563,-151.0,0.00021999,7]
[330855952,1719868247572,-151.0,0.00021999,7]
[330855953,1719868247581,-151.0,0.00021999,7]
[330855954,1719868247590,-151.0,0.00021999,7]
[330855955,1719868247599,-151.0,0.00021999,7]
[330855957,1719868247608,-204.158447,0.00021999,7]
[330855958,1719868247617,-151.0,0.00021999,7]
[330855959,1719868247626,-151.0,0.00021999,7]
[330855960,1719868247635,-150.0,0.00021999,10]
[330855961,1719868247644,-150.0,0.00021999,10]
[330855962,1719868247653,-150.0,0.00021999,10]
[330855963,1719868247662,-151.0,0.00021999,7]
[330855964,1719868247671,-415.29111,0.00021999,7]
[330855965,1719868247680,-415.29111,0.00021999,7]
[330855966,1719868247689,-151.0,0.00021999,7]
[330855967,1719868247699,-151.0,0.00021999,7]
[330855968,1719868247708,-151.0,0.00021999,7]
[330855969,1719868247717,-646.0,0.00021999,4]
[330855970,1719868247727,-646.0,0.00021999,4]
[330855971,1719868247736,-646.0,0.00021999,4]
[330855973,1719868247745,-646.0,0.00021999,4]
[330855974,1719868247754,-646.0,0.00021999,4]
[330855976,1719868247763,-646.0,0.00021999,4]
[330855978,1719868247772,-646.0,0.00021999,4]
[330855979,1719868247781,-646.0,0.00021999,4]
[330855981,1719868247790,-151.0,0.00021999,7]
[330855983,1719868247799,-151.0,0.00021999,7]
[330855984,1719868247809,-151.0,0.00021999,7]
[330855986,1719868247818,-218.416077,0.00021999,7]
[330855987,1719868247828,-218.416077,0.00021999,7]
[330855988,1719868247837,-151.0,0.00021999,7]
[330855989,1719868247845,-151.0,0.00021999,7]
[330855990,1719868247854,-151.0,0.00021999,7]
[330855991,1719868247863,-151.0,0.00021999,7]
[330855992,1719868247872,-151.0,0.00021999,7]
[330855993,1719868247881,-165.228282,0.00021999,7]
[330855994,1719868247890,-165.228282,0.00021999,7]
[330855995,1719868247899,-151.0,0.00021999,7]
[330855996,1719868247908,-151.0,0.00021999,7]
[330855997,1719868247918,-224.50593,0.00021999,7]
[330855998,1719868247927,-179.515258,0.00021999,7]
[330855999,1719868247937,-151.0,0.00021999,7]
[330856000,1719868247946,-151.0,0.00021999,7]
[330856001,1719868247955,-151.0,0.00021999,7]
[330856002,1719868247965,-151.0,0.00021999,7]
[330856003,1719868247974,-151.0,0.00021999,7]
[330856004,1719868247984,-151.0,0.00021999,7]
[330856005,1719868247993,-151.0,0.00021999,7]
[330856006,1719868248003,-151.528489,0.00021999,7]
[330856007,1719868248012,-300.0,0.00021999,2]
[330856008,1719868248028,-151.0,0.00021999,7]
[330856009,1719868248037,-151.0,0.00021999,7]
[330856010,1719868248046,-151.0,0.00021999,7]
[330856011,1719868248058,-151.0,0.00021999,7]
[330856012,1719868248068,-151.0,0.00021999,7]
[330856013,1719868248078,-151.0,0.00021999,7]
[330856014,1719868248088,-151.0,0.00021999,7]
[330856015,1719868248101,-151.0,0.00021999,7]
[330856016,1719868248110,-151.0,0.00021999,7]
[330856017,1719868248120,-151.0,0.00021999,7]
[330856018,1719868248130,-197.03584,0.00021999,7]
[330856019,1719868248140,-151.0,0.00021999,7]
[330856020,1719868248152,-151.0,0.00021999,7]
[330856021,1719868248162,-156.087441,0.00021999,7]
[330856022,1719868248173,-197.03584,0.00021999,7]
[330856023,1719868248183,-2776.6,0.00021999,4]
[330856024,1719868248195,-2776.6,0.00021999,4]
[330856025,1719868248205,-2776.6,0.00021999,4]
[330856026,1719868248216,-2776.6,0.00021999,4]
[330856027,1719868248225,-2776.6,0.00021999,4]
[330856028,1719868248235,-2776.6,0.00021999,4]
[330856029,1719868248245,-2776.6,0.00021999,4]
[330856030,1719868248254,-151.0,0.00021999,7]
[330856031,1719868248264,-248.704096,0.00021999,7]
[330856032,1719868248274,-151.0,0.00021999,7]
[330856033,1719868248283,-151.0,0.00021999,7]
[330856034,1719868248293,-151.0,0.00021999,7]
[330856035,1719868248303,-151.0,0.00021999,7]
[330856036,1719868248312,-151.0,0.00021999,7]
[330856037,1719868248322,-280.985272,0.00021999,7]
[330856038,1719868248332,-280.985272,0.00021999,7]
[330856039,1719868248342,-151.0,0.00021999,7]
[330856040,1719868248351,-151.0,0.00021999,7]
[330856041,1719868248362,-151.0,0.00021999,7]
[330856042,1719868248371,-151.0,0.00021999,7]
[330856043,1719868248381,-198.290978,0.00021999,7]
[330856044,1719868248391,-198.290978,0.00021999,7]
[330856045,1719868248400,-2173.45,0.00021999,4]
[330856046,1719868248410,-2173.45,0.00021999,4]
[330856047,1719868248419,-2173.45,0.00021999,4]
[330856048,1719868248429,-2173.45,0.00021999,4]
[330856050,1719868248439,-2173.45,0.00021999,4]
[330856052,1719868248449,-2173.45,0.00021999,4]
[330856054,1719868248458,-2173.45,0.00021999,4]
[330856056,1719868248468,-151.0,0.00021999,7]
[330856058,1719868248478,-151.0,0.00021999,7]
[330856060,1719868248487,-151.0,0.00021999,7]
[330856062,1719868248497,-151.0,0.00021999,7]
[330856063,1719868248508,-283.401591,0.00021999,7]
[330856064,1719868248517,-283.401591,0.00021999,7]
[330856065,1719868248527,-150.0,0.00021999,10]
[330856066,1719868248538,-1025.51,0.00021999,4]
[330856067,1719868248549,-1025.51,0.00021999,4]
[330856068,1719868248561,-1025.51,0.00021999,4]
[330856069,1719868248572,-1025.51,0.00021999,4]
[330856070,1719868248583,-1025.51,0.00021999,4]
[330856071,1719868248593,-1025.51,0.00021999,4]
[330856072,1719868248603,-1025.51,0.00021999,4]
[330856073,1719868248614,-2346.69,0.00021999,4]
[330856074,1719868248624,-2346.69,0.00021999,4]
[330856075,1719868248634,-2346.69,0.00021999,4]
[330856076,1719868248644,-2346.69,0.00021999,4]
[330856077,1719868248654,-3491.75,0.00021999,4]
[330856078,1719868248663,-2346.69,0.00021999,4]
[330856079,1719868248673,-3491.75,0.00021999,4]
[330856080,1719868248683,-3491.75,0.00021999,4]
[330856081,1719868248692,-3491.75,0.00021999,4]
[330856082,1719868248702,-3491.75,0.00021999,4]
[330856083,1719868248722,-151.0,0.00021999,7]
[330856084,1719868248734,-2346.69,0.00021999,4]
[330856085,1719868248745,-3491.75,0.00021999,4]
[330856086,1719868248757,-500.0,0.00021999,4]
[330856087,1719868248769,-3491.75,0.00021999,4]
[330856088,1719868248781,-2346.69,0.00021999,4]
[330856089,1719868248794,-500.0,0.00021999,4]
[330856090,1719868248805,-500.0,0.00021999,4]
[330856091,1719868248816,-500.0,0.00021999,4]
[330856092,1719868248828,-500.0,0.00021999,4]
[330856093,1719868248841,-500.0,0.00021999,4]
[330856094,1719868248851,-500.0,0.00021999,4]
[330856095,1719868248863,-215.376825,0.00021999,7]
[330856096,1719868248874,-500.0,0.00021999,4]
[330856097,1719868248884,-500.0,0.00021999,4]
[330856098,1719868248898,-500.0,0.00021999,4]
[330856099,1719868248909,-500.0,0.00021999,4]
[330856100,1719868248919,-151.0,0.00021999,7]
[330856101,1719868248930,-500.0,0.00021999,4]
[330856102,1719868248941,-151.0,0.00021999,7]
[330856103,1719868248952,-215.376825,0.00021999,7]
[330856104,1719868248962,-151.0,0.00021999,7]
[330856105,1719868248973,-151.0,0.00021999,7]
[330856106,1719868248985,-2634.09,0.00021999,4]
[330856107,1719868248996,-2634.09,0.00021999,4]
[330856108,1719868249008,-151.0,0.00021999,7]
[330856109,1719868249022,-2634.09,0.00021999,4]
[330856110,1719868249035,-2634.09,0.00021999,4]
[330856111,1719868249046,-2634.09,0.00021999,4]
[330856112,1719868249058,-2634.09,0.00021999,4]
[330856113,1719868249071,-2634.09,0.00021999,4]
[330856114,1719868249082,-151.0,0.00021999,7]
[330856115,1719868249096,-2634.09,0.00021999,4]
[330856116,1719868249110,-151.0,0.00021999,7]
[330856117,1719868249122,-1545.64,0.00021999,4]
[330856118,1719868249132,-1545.64,0.00021999,4]
[330856119,1719868249142,-1545.64,0.00021999,4]
[330856120,1719868249153,-1545.64,0.00021999,4]
[330856121,1719868249163,-1545.64,0.00021999,4]
[330856122,1719868249174,-1545.64,0.00021999,4]
[330856123,1719868249185,-1545.64,0.00021999,4]
[330856124,1719868249197,-608.45,0.00021999,4]
[330856125,1719868249209,-608.45,0.00021999,4]
[330856126,1719868249220,-608.45,0.00021999,4]
[330856127,1719868249232,-608.45,0.00021999,4]
[330856128,1719868249242,-608.45,0.00021999,4]
[330856129,1719868249254,-608.45,0.00021999,4]
[330856130,1719868249270,-608.45,0.00021999,4]
[330856131,1719868249283,-608.45,0.00021999,4]
[330856132,1719868249296,-500.0,0.00021999,4]
[330856133,1719868249310,-500.0,0.00021999,4]
[330856134,1719868249322,-500.0,0.00021999,4]
[330856135,1719868249334,-500.0,0.00021999,4]
[330856136,1719868249345,-500.0,0.00021999,4]
[330856137,1719868249356,-500.0,0.00021999,4]
[330856138,1719868249367,-500.0,0.00021999,4]
[330856139,1719868249379,-500.0,0.00021999,4]
[330856140,1719868249391,-500.0,0.00021999,4]
[330856141,1719868249404,-500.0,0.00021999,4]
[330856142,1719868249415,-500.0,0.00021999,4]
[330856143,1719868249427,-234.993545,0.00021999,7]
[330856144,1719868249439,-500.0,0.00021999,4]
[330856145,1719868249451,-500.0,0.00021999,4]
[330856146,1719868249463,-500.0,0.00021999,4]
[330856147,1719868249475,-500.0,0.00021999,4]
[330856148,1719868249486,-500.0,0.00021999,4]
[330856149,1719868249497,-1540.04,0.00021999,4]
[330856150,1719868249510,-1540.04,0.00021999,4]
[330856151,1719868249522,-234.993545,0.00021999,7]
[330856152,1719868249539,-1540.04,0.00021999,4]
[330856153,1719868249550,-1540.04,0.00021999,4]
[330856154,1719868249563,-1540.04,0.00021999,4]
[330856155,1719868249575,-1540.04,0.00021999,4]
[330856156,1719868249586,-1540.04,0.00021999,4]
[330856157,1719868249599,-1540.04,0.00021999,4]
[330856158,1719868249613,-905.27,0.00021999,4]
[330856159,1719868249625,-905.27,0.00021999,4]
[330856160,1719868249637,-905.27,0.00021999,4]
[330856161,1719868249648,-905.27,0.00021999,4]
[330856162,1719868249662,-905.27,0.00021999,4]
[330856163,1719868249673,-905.27,0.00021999,4]
[330856164,1719868249684,-905.27,0.00021999,4]
[330856165,1719868249695,-535.46,0.00021999,4]
[330856166,1719868249706,-535.46,0.00021999,4]
[330856167,1719868249716,-535.46,0.00021999,4]
[330856168,1719868249726,-535.46,0.00021999,4]
[330856169,1719868249737,-3871.7,0.00021999,4]
[330856170,1719868249748,-622.501496,0.00021999,7]
[330856171,1719868249759,-832.44,0.00021999,4]
[330856172,1719868249770,-3871.7,0.00021999,4]
[330856173,1719868249781,-832.44,0.00021999,4]
[330856174,1719868249791,-3871.7,0.00021999,4]
[330856175,1719868249803,-832.44,0.00021999,4]
[330856176,1719868249814,-832.44,0.00021999,4]
[330856177,1719868249825,-3871.7,0.00021999,4]
[330856178,1719868249835,-832.44,0.00021999,4]
[330856179,1719868249847,-3871.7,0.00021999,4]
[330856180,1719868249858,-622.501496,0.00021999,7]
[330856181,1719868249870,-832.44,0.00021999,4]
[330856182,1719868249882,-3871.7,0.00021999,4]
[330856183,1719868249894,-3871.7,0.00021999,4]
[330856184,1719868249905,-832.44,0.00021999,4]
[330856185,1719868249916,-2173.53,0.00021999,4]
[330856186,1719868249927,-2173.53,0.00021999,4]
[330856187,1719868249937,-2173.53,0.00021999,4]
[330856188,1719868249948,-2063.07,0.00021999,4]
[330856189,1719868249958,-2173.53,0.00021999,4]
[330856190,1719868249968,-2063.07,0.00021999,4]
[330856191,1719868249979,-2173.53,0.00021999,4]
[330856192,1719868249990,-2063.07,0.00021999,4]
[330856193,1719868250001,-3871.7,0.00021999,4]
[330856194,1719868250014,-639.87,0.00021999,4]
[330856195,1719868250030,-2173.53,0.00021999,4]
[330856196,1719868250043,-2063.07,0.00021999,4]
[330856197,1719868250054,-2063.07,0.00021999,4]
[330856198,1719868250066,-639.87,0.00021999,4]
[330856199,1719868250078,-2173.53,0.00021999,4]
[330856200,1719868250089,-2063.07,0.00021999,4]
[330856201,1719868250105,-639.87,0.00021999,4]
[330856202,1719868250118,-2063.07,0.00021999,4]
[330856203,1719868250131,-639.87,0.00021999,4]
[330856204,1719868250143,-343.48,0.00021999,4]
[330856205,1719868250154,-2063.07,0.00021999,4]
[330856206,1719868250164,-151.0,0.00021999,7]
[330856207,1719868250174,-639.87,0.00021999,4]
[330856208,1719868250188,-639.87,0.00021999,4]
[330856209,1719868250198,-692.832097,0.00021999,7]
[330856210,1719868250211,-151.0,0.00021999,3]
[330856211,1719868250223,-639.87,0.00021999,4]
[330856212,1719868250236,-639.87,0.00021999,4]
[330856213,1719868250248,-692.832097,0.00021999,7]
[330856214,1719868250259,-2494.45,0.00021999,4]
[330856215,1719868250270,-2494.45,0.00021999,4]
[330856216,1719868250282,-2494.45,0.00021999,4]
[330856217,1719868250292,-2494.45,0.00021999,4]
[330856218,1719868250303,-2494.45,0.00021999,4]
[330856219,1719868250314,-2494.45,0.00021999,4]
[330856220,1719868250326,-2494.45,0.00021999,4]